bitfinex-derivatives/quotes_SOLF0:USTF0_20260220
["timestamp","ask_amount","ask_price","bid_price","bid_amount"]
[1771557185566,10.8574,82.938,82.907,10.87388025]
[1771557194976,3.14184708,82.94,82.907,10.87388025]
[1771557195170,4.32573294,82.939,82.907,10.87388025]
[1771557195473,4.32573294,82.938,82.907,10.87388025]
[1771557195669,3.14184708,82.94,82.907,10.87388025]
[1771557195970,4.32597108,82.939,82.907,10.87388025]
[1771557196174,4.32597108,82.938,82.907,10.87388025]
[1771557196376,4.32597108,82.937,82.907,10.87388025]
[1771557196575,3.14184708,82.94,82.907,10.87388025]
[1771557196774,4.32624535,82.939,82.907,10.87388025]
[1771557196974,4.32624535,82.938,82.907,10.87388025]
[1771557197274,4.32624535,82.937,82.907,10.87388025]
[1771557197474,3.14184708,82.94,82.907,10.87388025]
[1771557197673,4.32655549,82.939,82.907,10.87388025]
[1771557197974,4.32655549,82.938,82.907,10.87388025]
[1771557198274,3.14184708,82.94,82.907,10.87388025]
[1771557198275,4.32655549,82.937,82.907,10.87388025]
[1771557198571,3.14184708,82.94,82.907,10.87388025]
[1771557198771,4.32688154,82.939,82.907,10.87388025]
[1771557198966,4.32688154,82.938,82.907,10.87388025]
[1771557199172,4.32688154,82.937,82.907,10.87388025]
[1771557199473,3.14184708,82.94,82.907,10.87388025]
[1771557199774,4.3272651,82.939,82.907,10.87388025]
[1771557200072,4.3272651,82.938,82.907,10.87388025]
[1771557200271,4.3272651,82.937,82.907,10.87388025]
[1771557200575,4.3272651,82.936,82.907,10.87388025]
[1771557200774,3.14184708,82.94,82.907,10.87388025]
[1771557200975,4.32773337,82.939,82.907,10.87388025]
[1771557201274,4.32773337,82.938,82.907,10.87388025]
[1771557201477,4.32773337,82.937,82.907,10.87388025]
[1771557201775,4.32773337,82.936,82.907,10.87388025]
[1771557201972,3.14184708,82.94,82.907,10.87388025]
[1771557202174,4.32782647,82.939,82.907,10.87388025]
[1771557202476,4.32782647,82.938,82.907,10.87388025]
[1771557202676,4.32782647,82.937,82.907,10.87388025]
[1771557202878,4.32782647,82.936,82.907,10.87388025]
[1771557203177,3.14184708,82.94,82.907,10.87388025]
[1771557203477,4.33110299,82.939,82.907,10.87388025]
[1771557203670,4.33110299,82.938,82.907,10.87388025]
[1771557203875,4.33110299,82.937,82.907,10.87388025]
[1771557204181,4.33110299,82.936,82.907,10.87388025]
[1771557204478,3.14184708,82.94,82.907,10.87388025]
[1771557204674,4.3312343,82.939,82.907,10.87388025]
[1771557204972,4.3312343,82.938,82.907,10.87388025]
[1771557205174,4.3312343,82.937,82.907,10.87388025]
[1771557205476,4.3312343,82.936,82.907,10.87388025]
[1771557205676,3.14184708,82.94,82.907,10.87388025]
[1771557205976,4.3313825,82.939,82.907,10.87388025]
[1771557206175,4.3313825,82.938,82.907,10.87388025]
[1771557206374,4.3313825,82.937,82.907,10.87388025]
[1771557206575,4.3313825,82.936,82.907,10.87388025]
[1771557206773,3.14184708,82.94,82.907,10.87388025]
[1771557206973,4.33155115,82.939,82.907,10.87388025]
[1771557207173,4.33155115,82.938,82.907,10.87388025]
[1771557207374,4.33155115,82.937,82.907,10.87388025]
[1771557207573,4.33155115,82.936,82.907,10.87388025]
[1771557207774,4.33155115,82.935,82.907,10.87388025]
[1771557207970,3.14184708,82.94,82.907,10.87388025]
[1771557208173,4.33174811,82.939,82.907,10.87388025]
[1771557208371,4.33174811,82.938,82.907,10.87388025]
[1771557208575,4.33174811,82.937,82.907,10.87388025]
[1771557208772,4.33174811,82.936,82.907,10.87388025]
[1771557208975,4.33174811,82.935,82.907,10.87388025]
[1771557209275,3.14184708,82.94,82.907,10.87388025]
[1771557209475,4.33226695,82.939,82.907,10.87388025]
[1771557209773,4.33226695,82.938,82.907,10.87388025]
[1771557209974,4.33226695,82.937,82.907,10.87388025]
[1771557210270,4.33226695,82.936,82.907,10.87388025]
[1771557210474,4.33226695,82.935,82.907,10.87388025]
[1771557210775,3.14184708,82.94,82.907,10.87388025]
[1771557210972,4.33265233,82.939,82.907,10.87388025]
[1771557211170,4.33265233,82.938,82.907,10.87388025]
[1771557211375,4.33265233,82.937,82.907,10.87388025]
[1771557211575,4.33265233,82.936,82.907,10.87388025]
[1771557211771,4.33265233,82.935,82.907,10.87388025]
[1771557211969,4.33265233,82.934,82.907,10.87388025]
[1771557212174,3.14184708,82.94,82.907,10.87388025]
[1771557212377,4.33345963,82.939,82.907,10.87388025]
[1771557212577,4.33345963,82.938,82.907,10.87388025]
[1771557212777,4.33345963,82.937,82.907,10.87388025]
[1771557212976,4.33345963,82.936,82.907,10.87388025]
[1771557213279,4.33345963,82.935,82.907,10.87388025]
[1771557213774,3.14184708,82.95,82.915,10.7836087]
[1771557213980,9.23448318,82.949,82.915,10.7836087]
[1771557214180,3.14184708,82.95,82.915,10.7836087]
[1771557214781,3.14184708,82.95,82.921,10.7834318]
[1771557221287,3.14184708,82.94,82.921,10.7834318]
[1771557221583,3.14184708,82.94,82.906,10.8616]
[1771557221784,3.14184708,82.94,82.907,10.76268764]
[1771557222586,3.14184708,82.94,82.909,21.6236198]
[1771557225288,3.14184708,82.94,82.91,10.77732025]
[1771557226991,3.14184708,82.95,82.913,10.77716561]
[1771557228090,3.14184708,82.95,82.916,10.04454764]
[1771557230693,3.14184708,82.94,82.916,10.04454764]
[1771557231894,5.45073814,82.949,82.916,10.04454764]
[1771557238293,5.45073814,82.949,82.917,10.8601]
[1771557238497,3.14129134,82.95,82.917,10.8601]
[1771557238498,3.14129134,82.95,82.918,10.04454764]
[1771557241801,5.56382052,82.948,82.918,10.04454764]
[1771557242700,3.14129134,82.94,82.918,10.04454764]
[1771557243399,5.56382052,82.948,82.918,10.04454764]
[1771557246106,3.14129134,82.95,82.918,10.04454764]
[1771557251309,4.30269202,82.949,82.918,10.04454764]
[1771557251610,3.14129134,82.95,82.918,10.04454764]
[1771557251905,4.30272879,82.949,82.918,10.04454764]
[1771557252110,3.14129134,82.95,82.918,10.04454764]
[1771557252308,4.30300791,82.949,82.918,10.04454764]
[1771557252506,3.14129134,82.95,82.918,10.04454764]
[1771557252706,4.30304487,82.949,82.925,9.74065747]
[1771557252911,5.71109006,82.964,82.925,9.74065747]
[1771557253110,3.14129134,82.95,82.925,9.74065747]
[1771557254314,4.30378966,82.949,82.925,9.74065747]
[1771557254513,3.14129134,82.95,82.925,9.74065747]
[1771557254713,4.30380566,82.949,82.925,9.74065747]
[1771557254910,3.14129134,82.95,82.925,9.74065747]
[1771557255106,4.30380566,82.949,82.925,9.74065747]
[1771557255309,3.14129134,82.95,82.925,9.74065747]
[1771557271832,3.14129134,82.96,82.925,9.74065747]
[1771557272031,4.30303461,82.959,82.925,9.74065747]
[1771557272331,3.14129134,82.96,82.925,9.74065747]
[1771557272526,4.30266732,82.959,82.925,9.74065747]
[1771557272728,3.14129134,82.96,82.925,9.74065747]
[1771557272925,4.30266718,82.959,82.925,9.74065747]
[1771557273122,3.14129134,82.96,82.925,9.74065747]
[1771557273334,4.30263874,82.959,82.925,9.74065747]
[1771557273629,3.14129134,82.96,82.925,9.74065747]
[1771557273829,4.30235143,82.959,82.925,9.74065747]
[1771557274030,3.14129134,82.96,82.925,9.74065747]
[1771557274226,4.30235143,82.959,82.925,9.74065747]
[1771557274430,3.14129134,82.96,82.925,9.74065747]
[1771557274631,4.30207583,82.959,82.925,9.74065747]
[1771557274925,3.14129134,82.96,82.925,9.74065747]
[1771557275129,4.30207583,82.959,82.925,9.74065747]
[1771557275330,3.14129134,82.96,82.925,9.74065747]
[1771557275524,4.30183651,82.959,82.931,9.74065747]
[1771557275729,3.14129134,82.96,82.931,9.74065747]
[1771557275931,4.30183677,82.959,82.931,9.74065747]
[1771557276131,3.14129134,82.96,82.931,9.74065747]
[1771557279933,3.14129134,82.95,82.918,10.12396826]
[1771557280936,5.88052281,82.969,82.92,10.12396826]
[1771557281136,3.14129134,82.96,82.92,10.12396826]
[1771557281636,5.88877916,82.958,82.921,10.12396826]
[1771557281837,3.14129134,82.95,82.921,10.12396826]
[1771557289541,5.88877916,82.958,82.921,10.12396826]
[1771557289741,4.30184662,82.957,82.921,10.12396826]
[1771557289936,4.30184662,82.956,82.921,10.12396826]
[1771557290239,4.30184662,82.955,82.921,10.12396826]
[1771557290436,4.30184662,82.954,82.921,10.12396826]
[1771557290638,5.88877916,82.958,82.921,10.12396826]
[1771557290840,4.30203508,82.957,82.921,10.12396826]
[1771557291040,4.30203508,82.956,82.921,10.12396826]
[1771557291235,4.30203508,82.955,82.921,10.12396826]
[1771557291742,4.30203508,82.954,82.921,10.12396826]
[1771557291942,5.88877916,82.958,82.921,10.12396826]
[1771557292240,10.8551,82.956,82.921,10.12396826]
[1771557292440,4.3021854,82.955,82.921,10.12396826]
[1771557292640,11.29416764,82.977,82.911,10.12396826]
[1771557292641,6.0249981,82.949,82.911,10.12396826]
[1771557293042,6.0249981,82.949,82.891,10.12396826]
[1771557293235,6.03152934,82.939,82.891,10.12396826]
[1771557294636,10.8574,82.938,82.891,10.12396826]
[1771557294840,10.8574,82.938,82.894,10.12396826]
[1771557296636,10.8589,82.927,82.894,10.12396826]
[1771557297940,16.46113888,82.927,82.894,10.12396826]
[1771557298338,3.14245553,82.93,82.894,10.12396826]
[1771557298938,3.14245553,82.93,82.895,10.8629]
[1771557299142,3.14245553,82.93,82.896,10.12396826]
[1771557299839,5.6085137,82.936,82.896,10.12396826]
[1771557300349,3.14245553,82.94,82.906,10.12396826]
[1771557300643,5.72273868,82.946,82.906,10.12396826]
[1771557301035,5.72273868,82.946,82.91,10.12396826]
[1771557301341,3.14245553,82.94,82.91,10.12396826]
[1771557302441,3.14245553,82.95,82.913,10.12396826]
[1771557302647,4.29564579,82.949,82.913,10.12396826]
[1771557302945,4.29564579,82.948,82.913,10.12396826]
[1771557303148,3.14245553,82.95,82.913,10.12396826]
[1771557303643,3.14245553,82.95,82.915,10.68752137]
[1771557305045,5.5662036,82.949,82.915,10.68752137]
[1771557308047,3.14245553,82.94,82.915,10.68752137]
[1771557326971,5.5662036,82.949,82.915,10.68752137]
[1771557327173,4.29289927,82.948,82.915,10.68752137]
[1771557327374,4.29289927,82.947,82.915,10.68752137]
[1771557327573,4.29289927,82.946,82.915,10.68752137]
[1771557327774,4.29289927,82.945,82.915,10.68752137]
[1771557327976,4.29289927,82.944,82.915,10.68752137]
[1771557328176,5.5662036,82.949,82.915,10.68752137]
[1771557328376,13.50666855,82.948,82.915,10.68752137]
[1771557328676,4.29395718,82.947,82.915,10.68752137]
[1771557328879,4.29395718,82.946,82.915,10.68752137]
[1771557329076,4.29395718,82.945,82.915,10.68752137]
[1771557329272,4.29395718,82.944,82.915,10.68752137]
[1771557329576,4.29395718,82.943,82.915,10.68752137]
[1771557329778,5.5662036,82.949,82.915,10.68752137]
[1771557329977,13.50971193,82.948,82.915,10.68752137]
[1771557330177,13.50971193,82.947,82.915,10.68752137]
[1771557330476,4.2945923,82.946,82.915,10.68752137]
[1771557330674,4.2945923,82.945,82.915,10.68752137]
[1771557330878,4.2945923,82.944,82.915,10.68752137]
[1771557331079,4.2945923,82.943,82.915,10.68752137]
[1771557331280,4.29579198,82.942,82.915,10.68752137]
[1771557331482,5.5662036,82.949,82.915,10.68752137]
[1771557331782,10.8563,82.947,82.915,10.68752137]
[1771557332083,4.29579198,82.946,82.915,10.68752137]
[1771557332283,4.29579198,82.945,82.915,10.68752137]
[1771557332581,4.29579198,82.944,82.915,10.68752137]
[1771557332783,4.29579198,82.943,82.915,10.68752137]
[1771557333077,4.29579198,82.942,82.915,10.68752137]
[1771557333282,10.8563,82.947,82.915,10.68752137]
[1771557333486,13.51635199,82.946,82.915,10.68752137]
[1771557333684,4.29678885,82.945,82.915,10.68752137]
[1771557333884,4.29678885,82.944,82.915,10.68752137]
[1771557334085,4.29678885,82.943,82.915,10.68752137]
[1771557334280,4.29678885,82.942,82.915,10.68752137]
[1771557334580,4.29678885,82.941,82.915,10.68752137]
[1771557334785,10.8563,82.947,82.915,10.68752137]
[1771557335084,13.51824024,82.946,82.915,10.68752137]
[1771557335284,13.51824024,82.945,82.915,10.68752137]
[1771557335478,4.2973882,82.944,82.915,10.68752137]
[1771557335781,4.2973882,82.943,82.915,10.68752137]
[1771557335982,4.2973882,82.942,82.915,10.68752137]
[1771557336181,4.2973882,82.941,82.915,10.68752137]
[1771557336382,4.2973882,82.94,82.915,10.68752137]
[1771557336578,10.8563,82.947,82.915,10.68752137]
[1771557336784,13.52348228,82.946,82.915,10.68752137]
[1771557337085,13.52348228,82.945,82.915,10.68752137]
[1771557337286,13.52348228,82.944,82.915,10.68752137]
[1771557337486,13.52348228,82.943,82.915,10.68752137]
[1771557337686,4.29905214,82.942,82.915,10.68752137]
[1771557337886,4.29905214,82.941,82.915,10.68752137]
[1771557338086,4.29905214,82.94,82.915,10.68752137]
[1771557338287,4.29905214,82.939,82.915,10.68752137]
[1771557338487,10.8563,82.947,82.915,10.68752137]
[1771557338788,13.52707395,82.946,82.915,10.68752137]
[1771557339087,13.52707395,82.945,82.915,10.68752137]
[1771557339288,13.52707395,82.944,82.915,10.68752137]
[1771557339485,3.14245553,82.94,82.915,10.68752137]
[1771557339688,4.30019122,82.939,82.915,10.68752137]
[1771557339889,3.14245553,82.94,82.915,10.68752137]
[1771557340088,4.30019136,82.939,82.915,10.68752137]
[1771557340288,3.14245553,82.94,82.915,10.68752137]
[1771557340590,4.30019151,82.939,82.915,10.68752137]
[1771557340789,3.14245553,82.94,82.915,10.68752137]
[1771557341089,4.30019151,82.939,82.915,10.68752137]
[1771557341390,10.8563,82.947,82.915,10.68752137]
[1771557341590,13.52707537,82.946,82.915,10.68752137]
[1771557341790,13.52707537,82.945,82.915,10.68752137]
[1771557341991,13.52707537,82.944,82.915,10.68752137]
[1771557342189,13.52707537,82.943,82.915,10.68752137]
[1771557342390,4.30019166,82.942,82.915,10.68752137]
[1771557342590,4.30019166,82.941,82.915,10.68752137]
[1771557342790,4.30019166,82.94,82.915,10.68752137]
[1771557342991,4.30019166,82.939,82.915,10.68752137]
[1771557343193,4.30019166,82.938,82.915,10.68752137]
[1771557343394,3.14245553,82.94,82.915,10.68752137]
[1771557343596,4.30143431,82.939,82.915,10.68752137]
[1771557343797,4.30143431,82.938,82.915,10.68752137]
[1771557343997,10.8563,82.947,82.915,10.68752137]
[1771557344191,13.53098251,82.946,82.915,10.68752137]
[1771557344496,13.53098251,82.945,82.915,10.68752137]
[1771557344796,13.53098251,82.944,82.915,10.68752137]
[1771557345097,13.53289931,82.943,82.915,10.68752137]
[1771557345297,13.53289931,82.942,82.915,10.68752137]
[1771557345497,13.53289931,82.941,82.915,10.68752137]
[1771557345795,4.30143447,82.94,82.915,10.68752137]
[1771557345987,4.30143447,82.939,82.915,10.68752137]
[1771557346192,4.30143447,82.938,82.915,10.68752137]
[1771557346390,4.30143447,82.937,82.915,10.68752137]
[1771557346589,10.8563,82.947,82.915,10.68752137]
[1771557346798,13.53388697,82.946,82.915,10.68752137]
[1771557346997,13.53388697,82.945,82.915,10.68752137]
[1771557347197,13.53388697,82.944,82.915,10.68752137]
[1771557347498,13.53388697,82.943,82.915,10.68752137]
[1771557347698,13.53388697,82.942,82.915,10.68752137]
[1771557347998,13.53388697,82.941,82.915,10.68752137]
[1771557348196,4.30236789,82.94,82.915,10.68752137]
[1771557348391,4.30236789,82.939,82.915,10.68752137]
[1771557348597,4.30236789,82.938,82.915,10.68752137]
[1771557348797,4.30236789,82.937,82.915,10.68752137]
[1771557349097,10.8563,82.947,82.915,10.68752137]
[1771557349297,13.53483099,82.946,82.915,10.68752137]
[1771557349498,13.53483099,82.945,82.915,10.68752137]
[1771557349797,13.53483099,82.944,82.915,10.68752137]
[1771557349999,13.53483099,82.943,82.915,10.68752137]
[1771557350194,13.53483099,82.942,82.915,10.68752137]
[1771557350400,13.53483099,82.941,82.915,10.68752137]
[1771557350596,4.30284439,82.94,82.915,10.68752137]
[1771557350797,4.30284439,82.939,82.915,10.68752137]
[1771557350994,4.30284439,82.938,82.915,10.68752137]
[1771557351197,4.30284439,82.937,82.915,10.68752137]
[1771557351398,4.30284439,82.936,82.915,10.68752137]
[1771557351600,3.14245553,82.94,82.915,10.68752137]
[1771557351900,4.3035893,82.939,82.915,10.68752137]
[1771557352199,4.3035893,82.938,82.915,10.68752137]
[1771557352401,4.3035893,82.937,82.915,10.68752137]
[1771557352601,4.3035893,82.936,82.915,10.68752137]
[1771557352801,3.14245553,82.95,82.915,10.68752137]
[1771557352998,13.53792958,82.949,82.915,10.68752137]
[1771557353298,13.53792958,82.948,82.915,10.68752137]
[1771557353498,13.53792958,82.947,82.915,10.68752137]
[1771557353700,13.53792958,82.946,82.915,10.68752137]
[1771557353997,13.53792958,82.945,82.915,10.68752137]
[1771557354196,13.53792958,82.944,82.922,10.62544294]
[1771557354499,4.30191156,82.943,82.922,10.62544294]
[1771557354695,4.30191156,82.942,82.922,10.62544294]
[1771557354892,4.30191156,82.941,82.922,10.62544294]
[1771557355097,3.14245553,82.95,82.922,10.62544294]
[1771557355292,13.5651723,82.949,82.922,10.62544294]
[1771557355599,13.5651723,82.948,82.922,10.62544294]
[1771557355794,13.5651723,82.947,82.922,10.62544294]
[1771557355991,13.5651723,82.946,82.922,10.62544294]
[1771557356193,13.5651723,82.945,82.922,10.62544294]
[1771557356396,4.30103298,82.944,82.922,10.62544294]
[1771557356598,4.30103298,82.943,82.922,10.62544294]
[1771557356800,4.30103298,82.942,82.921,10.8595]
[1771557356995,3.14245553,82.95,82.922,10.62544294]
[1771557357194,13.56181475,82.949,82.922,10.62544294]
[1771557357399,13.56181475,82.948,82.922,10.62544294]
[1771557357599,13.56181475,82.947,82.922,10.62544294]
[1771557357800,13.56181475,82.946,82.922,10.62544294]
[1771557358102,13.56181475,82.945,82.922,10.62544294]
[1771557358302,4.30059835,82.944,82.922,10.62544294]
[1771557358503,3.14245553,82.94,82.922,10.62544294]
[1771557359106,3.14245553,82.95,82.922,10.62544294]
[1771557359405,13.55971052,82.949,82.922,10.62544294]
[1771557359602,13.55971052,82.948,82.922,10.62544294]
[1771557359802,4.29977543,82.947,82.922,10.62544294]
[1771557360004,4.29977543,82.946,82.922,10.62544294]
[1771557360203,4.29977543,82.945,82.922,10.62544294]
[1771557360402,4.29977543,82.944,82.922,10.62544294]
[1771557360606,3.14083227,82.95,82.922,10.62544294]
[1771557360803,4.29979824,82.949,82.922,10.62544294]
[1771557361002,3.14083227,82.95,82.922,10.62544294]
[1771557361202,4.29878858,82.949,82.922,10.62544294]
[1771557361403,3.14083227,82.95,82.922,10.62544294]
[1771557365714,1.85541495,82.95,82.926,9.97312037]
[1771557370011,1.85541495,82.95,82.917,9.87241088]
[1771557370916,4.89115437,82.949,82.917,9.87241088]
[1771557373417,1.85541495,82.95,82.917,9.87241088]
[1771557374315,1.85541495,82.95,82.92,9.87241088]
[1771557374515,3.14083227,82.96,82.92,9.87241088]
[1771557375718,3.14083227,82.96,82.926,9.87241088]
[1771557375918,8.02725314,82.96,82.926,9.87241088]
[1771557376119,14.92194534,82.998,82.926,9.87241088]
[1771557376120,3.14083227,82.95,82.926,9.87241088]
[1771557384429,4.88642087,82.959,82.926,9.87241088]
[1771557385821,3.14083227,82.95,82.926,9.87241088]
[1771557387823,4.88642087,82.959,82.926,9.87241088]
[1771557388223,4.88642087,82.959,82.928,9.87241088]
[1771557392232,3.14083227,82.95,82.913,10.8606]
[1771557392534,3.14083227,82.95,82.914,9.87241088]
[1771557393633,7.93736479,82.95,82.914,9.87241088]
[1771557393927,3.14083227,82.94,82.9,9.87241088]
[1771557394127,21.7025,82.986,82.9,9.87241088]
[1771557394128,3.14083227,82.93,82.9,9.87241088]
[1771557395630,3.14083227,82.92,82.893,31.83990021]
[1771557395835,3.14083227,82.92,82.893,41.71231109]
[1771557396132,3.14083227,82.92,82.894,9.87241088]
[1771557396837,4.83377837,82.919,82.885,9.87241088]
[1771557401643,10.8601,82.918,82.885,9.87241088]
[1771557401841,4.17313356,82.917,82.885,9.87241088]
[1771557402142,3.14083227,82.91,82.885,9.87241088]
[1771557402341,4.17313356,82.917,82.885,9.87241088]
[1771557404044,3.14083227,82.91,82.885,9.87241088]
[1771557404546,4.17313356,82.917,82.885,9.87241088]
[1771557406346,3.14083227,82.92,82.885,9.87241088]
[1771557412240,3.14083227,82.93,82.887,10.16779395]
[1771557413742,10.8581,82.933,82.88,3.14083227]
[1771557413743,10.8581,82.933,82.889,10.16779395]
[1771557416347,3.14083227,82.93,82.889,10.16779395]
[1771557417553,3.14083227,82.93,82.896,10.16779395]
[1771557420548,7.36826243,82.93,82.896,10.16779395]
[1771557421049,7.36826243,82.93,82.897,10.8627]
[1771557421253,3.14083227,82.94,82.898,10.16779395]
[1771557421952,4.23385849,82.939,82.898,10.16779395]
[1771557422651,4.23385849,82.939,82.9,10.8623]
[1771557422957,4.23385849,82.939,82.901,10.08567621]
[1771557424152,4.23385849,82.939,82.902,10.8621]
[1771557424451,4.23385849,82.939,82.903,10.08567621]
[1771557428960,3.14189531,82.95,82.911,10.16636572]
[1771557430657,13.99779531,82.95,82.911,10.16636572]
[1771557430851,4.15895013,82.949,82.911,10.16636572]
[1771557434063,4.15895013,82.949,82.917,10.16636572]
[1771557437566,3.14189531,82.94,82.917,10.16636572]
[1771557458387,3.14189531,82.96,82.917,10.16636572]
[1771557459289,3.14189531,82.94,82.917,10.16636572]
[1771557460188,3.14189531,82.95,82.917,10.16636572]
[1771557468301,3.14189531,82.95,82.918,9.82984703]
[1771557469997,3.14189531,82.95,82.927,10.8588]
[1771557470203,10.16175054,82.959,82.927,10.8588]
[1771557470204,10.16175054,82.959,82.928,9.82984703]
[1771557470398,4.29155203,82.958,82.928,9.82984703]
[1771557470594,10.16175054,82.959,82.928,9.82984703]
[1771557470794,4.29155251,82.958,82.928,9.82984703]
[1771557470995,10.16175054,82.959,82.928,9.82984703]
[1771557471302,4.29155251,82.958,82.928,9.82984703]
[1771557471500,4.29155251,82.957,82.928,9.82984703]
[1771557471701,10.16175054,82.959,82.93,9.82984703]
[1771557471902,4.29201623,82.958,82.93,9.82984703]
[1771557472201,4.29201623,82.957,82.93,9.82984703]
[1771557472402,10.16175054,82.959,82.931,10.8582]
[1771557472604,4.28878271,82.958,82.931,10.8582]
[1771557472806,3.14189531,82.96,82.931,10.8582]
[1771557472807,8.271e-05,82.957,82.931,20.68804703]
[1771557472999,3.14189531,82.96,82.934,9.82984703]
[1771557475807,3.14189531,82.96,82.91,3.14189531]
[1771557475808,10.16175054,82.974,82.937,9.82984703]
[1771557476010,3.14189531,82.96,82.937,9.82984703]
[1771557476609,13.30364585,82.96,82.911,9.82984703]
[1771557476809,10.16175054,82.959,82.911,9.82984703]
[1771557477414,10.16175054,82.959,82.929,9.82984703]
[1771557479810,3.14189531,82.95,82.929,9.82984703]
[1771557481110,3.14189531,82.95,82.9,3.14189531]
[1771557481111,3.14189531,82.95,82.915,9.82984703]
[1771557482721,3.14189531,82.94,82.917,10.8601]
[1771557483118,3.14189531,82.94,82.917,21.26173143]
[1771557483320,10.2062822,82.939,82.906,10.40163143]
[1771557483516,3.14189531,82.93,82.906,10.40163143]
[1771557483918,3.14202951,82.93,82.906,10.40163143]
[1771557484921,3.14202951,82.93,82.907,10.8614]
[1771557486915,3.14202951,82.93,82.91,10.861]
[1771557488923,10.4716845,82.929,82.902,10.8621]
[1771557489123,3.14202951,82.92,82.902,10.8621]
[1771557489821,2.951e-05,82.92,82.902,10.8621]
[1771557490521,3.14202951,82.93,82.905,10.11015031]
[1771557492521,3.14202951,82.93,82.906,10.8616]
[1771557492820,3.14202951,82.93,82.907,10.11015031]
[1771557508732,10.4716845,82.938,82.907,10.11015031]
[1771557509031,3.14202951,82.94,82.907,10.11015031]
[1771557509327,13.61371401,82.94,82.907,10.11015031]
[1771557509528,3.14202951,82.93,82.907,10.11015031]
[1771557513227,10.4716845,82.939,82.907,10.11015031]
[1771557513429,3.14202951,82.93,82.907,10.11015031]
[1771557516841,3.14202951,82.93,82.898,10.7308053]
[1771557517440,13.66514192,82.93,82.898,10.7308053]
[1771557519440,13.66514192,82.92,82.891,31.48688726]
[1771557519639,10.52311241,82.919,82.891,31.48688726]
[1771557523144,10.52311241,82.919,82.892,10.7308053]
[1771557525538,3.14202951,82.92,82.892,10.7308053]
[1771557528644,3.14202951,82.9,82.823,10.7308053]
[1771557528849,3.14202951,82.86,82.812,21.53627206]
[1771557529043,3.14202951,82.86,82.812,21.55627206]
[1771557530154,10.8648,82.882,82.831,19.97067698]
[1771557530356,10.8648,82.882,82.841,19.97146586]
[1771557531051,3.14202951,82.88,82.841,19.97146586]
[1771557533656,3.14202951,82.87,82.841,19.97146586]
[1771557537961,4.51351564,82.903,82.844,10.8697]
[1771557538160,3.14202951,82.88,82.845,18.22936167]
[1771557538360,3.14202951,82.87,82.845,18.22936167]
[1771557539963,2.951e-05,82.87,82.846,10.8694]
[1771557540165,2.951e-05,82.87,82.847,13.51388371]
[1771557543263,3.14202951,82.88,82.851,13.47263691]
[1771557544457,3.14202951,82.87,82.851,13.47263691]
[1771557545268,2.951e-05,82.87,82.851,13.47263691]
[1771557545469,3.14202951,82.88,82.851,13.47263691]
[1771557545871,3.14683332,82.88,82.851,13.47263691]
[1771557547066,3.14683332,82.88,82.852,13.52195358]
[1771557554168,10.8622,82.902,82.852,13.52195358]
[1771557554370,3.14683332,82.89,82.852,13.52195358]
[1771557555077,3.14683332,82.88,82.852,13.52195358]
[1771557557380,3.14683332,82.89,82.852,13.52195358]
[1771557558072,4.51000153,82.901,82.852,13.52195358]
[1771557558273,3.14683332,82.88,82.852,13.52195358]
[1771557559377,3.14683332,82.89,82.852,13.52195358]
[1771557568584,36.2,82.939,82.83,3.14683332]
[1771557568585,3.14683332,82.94,82.881,12.04602302]
[1771557568890,3.14683332,82.94,82.88,3.14683332]
[1771557568891,3.14683332,82.93,82.891,10.63553885]
[1771557569291,3.14683332,82.94,82.891,10.63553885]
[1771557569492,4.52572899,82.939,82.891,10.63553885]
[1771557569693,3.14683332,82.94,82.892,10.63553885]
[1771557570691,10.8568,82.943,82.901,10.63553885]
[1771557571093,3.14683332,82.94,82.901,10.63553885]
[1771557571490,10.8568,82.943,82.901,10.63553885]
[1771557574893,10.8568,82.943,82.91,3.14683332]
[1771557575095,10.8568,82.943,82.911,10.63553885]
[1771557579299,3.14683332,82.95,82.911,10.63553885]
[1771557579300,10.8576,82.937,82.911,10.63553885]
[1771557580201,9.23707177,82.936,82.9,3.14683332]
[1771557580395,9.23707177,82.936,82.9,14.10363607]
[1771557580601,9.23707177,82.936,82.901,10.95680275]
[1771557583402,10.858,82.934,82.901,10.95680275]
[1771557584403,20.20450988,82.934,82.901,10.95680275]
[1771557584605,9.40193002,82.957,82.851,36.2]
[1771557584606,9.34650988,82.927,82.881,10.95680275]
[1771557585604,9.34650988,82.927,82.89,3.14683332]
[1771557586002,9.34650988,82.927,82.891,10.95680275]
[1771557587204,10.8588,82.928,82.891,10.95680275]
[1771557589904,9.27411106,82.939,82.891,10.95680275]
[1771557591409,10.8595,82.923,82.891,10.95680275]
[1771557592206,9.3642796,82.922,82.891,10.95680275]
[1771557592406,328.76399878,82.961,82.891,10.95680275]
[1771557592407,10.8585,82.93,82.891,10.95680275]
[1771557592710,20.22161342,82.93,82.891,10.95680275]
[1771557592906,10.8588,82.928,82.891,10.95680275]
[1771557596309,20.57625426,82.928,82.891,10.95680275]
[1771557596709,10.8593,82.924,82.891,10.95680275]
[1771557597512,9.71745426,82.927,82.891,10.95680275]
[1771557599406,10.8584,82.931,82.891,10.95680275]
[1771557600215,9.80883237,82.949,82.901,10.95680275]
[1771557601715,9.81584552,82.947,82.901,10.95680275]